Cogmind - Beta 12 @@@ ROGUE MODE // 2023.05.21 @ 19:48:38 Player: Inkie Result: Self-destructed Performance ------------- Evolutions (2) 1000 Regions Visited (5) 1000 Robots Destroyed (39) 195 Value Destroyed (1038) 1038 Prototype IDs (0) 0 Alien Tech Used (0) 0 Bonus (0) 0 TOTAL SCORE: 3233 Bonus ------- None Cogmind --------- Core Integrity 405/550 Matter 218/300 Energy 32/100 System Corruption 0% Temperature Cool (0) Movement Core (500) Ox9 Location -8/Materials Parts ------- > --- POWER (1) -------- (None) > --- PROPULSION (2) --- (None) > --- UTILITY (6) ------ Large Storage Unit Hacking Suite > --- WEAPON (2) ------- Heavy Ion Cannon > --- INVENTORY (15) --- Light Treads Light Treads Armored Huge Wheel Heat Sink High-capacity Storage Unit High-capacity Matter Pod (200) Core Analyzer Energy Filter Grenade Launcher Rocket Launcher Peak State ------------ > --- POWER ------------ Improved Ion Engine > --- PROPULSION ------- Light Treads Light Treads > --- UTILITY ---------- Heat Sink Large Storage Unit Hacking Suite > --- WEAPON ----------- Medium Laser Light Assault Rifle > --- INVENTORY -------- Light Treads Light Treads Armored Huge Wheel Heat Sink High-capacity Storage Unit High-capacity Matter Pod Core Analyzer Energy Filter Heavy Ion Cannon Grenade Launcher Rocket Launcher [Rating: 13] Favorites ----------- Power Ion Engine Engine Ion Engine Propulsion Light Treads Treads Light Treads Utility Large Storage Unit Device Heat Sink Storage Large Storage Unit Hackware Hacking Suite Weapon Medium Laser Energy Gun Medium Laser Energy Cannon Heavy Ion Cannon Ballistic Gun Light Assault Rifle Launcher Grenade Launcher Build | -11 -10 -10 -10 -9 -8 ------- Run | Jun Mat Min Exi Min Mat Slots Evolved 4 | . . . . . 4 Power . | . . . . . . Propulsion . | . . . . . . Utility 4 | . . . . . 4 Weapon . | . . . . . . Parts Attached 31 | 6 13 2 . 2 8 Power 3 | 1 1 . . . 1 Engine 3 | 1 1 . . . 1 Core . | . . . . . . Reactor . | . . . . . . Propulsion 7 | 2 2 . . . 3 Treads 7 | 2 2 . . . 3 Leg . | . . . . . . Wheel . | . . . . . . Hover . | . . . . . . Flight . | . . . . . . Utility 5 | 1 3 . . . 1 Device 2 | . 2 . . . . Storage 2 | 1 1 . . . . Processor . | . . . . . . Hackware 1 | . . . . . 1 Protection . | . . . . . . Artifact . | . . . . . . Weapon 16 | 2 7 2 . 2 3 Energy Gun 3 | 1 2 . . . . Energy Cannon 1 | . . . . . 1 Ballistic Gun 6 | 1 2 1 . 1 1 Ballistic Cannon . | . . . . . . Launcher 6 | . 3 1 . 1 1 Special Weapon . | . . . . . . Impact Weapon . | . . . . . . Slashing Weapon . | . . . . . . Piercing Weapon . | . . . . . . Special Melee Weapon . | . . . . . . Unidentified Prototypes . | . . . . . . Parts Lost 9 | . 2 . . . 7 Power 3 | . 1 . . . 2 Propulsion 3 | . . . . . 3 Utility 1 | . . . . . 1 Weapon 2 | . 1 . . . 1 Highest Loss Streak 7 | . 1 . . . 7 To Critical Strikes . | . . . . . . Average Slot Usage (%) 93 | . 94 100 100 100 63 Engine 13 | . 13 14 14 14 5 Treads 27 | . 28 28 28 28 16 Device 10 | . 9 14 14 14 7 Storage 13 | . 14 14 14 14 9 Energy Gun 13 | . 14 14 14 14 7 Ballistic Gun 13 | . 13 12 14 14 7 Naked Turns . | . . . . . . Heaviest Build 31 | 13 29 29 29 29 31 Greatest Support 40 | 40 40 40 40 40 40 Greatest Overweight (x) 1 | . . . . . 1 Average Overweight (x) . | . . . . . . Largest Inventory Capacity 15 | 8 15 15 15 15 15 Average Capacity 14 | 6 14 15 15 15 15 Most Carried 13 | . 5 5 7 13 13 Average Carried 4 | . 2 5 5 8 12 Final Capacity 15 | 8 15 15 15 15 15 Final Carried 13 | . 5 5 7 13 11 Class Distribution -------------------- 95% | Mutant 4% | Scavenger-Mutant Dominant Class ---------------- Mutant | -10/Materials Mutant | -10/Mines Mutant | -10/Exiles Mutant | -9/Mines Scavenger-Mutant | -8/Materials Resources | -11 -10 -10 -10 -9 -8 ----------- Run | Jun Mat Min Exi Min Mat Matter Collected 702 | 204 295 . 70 109 24 Remotely . | . . . . . . Salvage Created 1031 | . 707 32 . 34 258 Parts 64 | . 45 2 . 9 8 Haulers Intercepted 2 | . 2 . . . . Recyclers Shooed . | . . . . . . Parts Field Recycled . | . . . . . . Retrieved Matter . | . . . . . . Parts Self-Destructed . | . . . . . . Prevented . | . . . . . . Kills | -11 -10 -10 -10 -9 -8 ------- Run | Jun Mat Min Exi Min Mat Combat Hostiles Destroyed 32 | . 18 2 . 7 5 Guns 10 | . 10 . . . . Cannons 2 | . . . . . 2 AOE 20 | . 8 2 . 7 3 Classes Destroyed 10 | . 6 . . . 4 Worker 1 | . 1 . . . . Hauler 2 | . 2 . . . . Recycler 1 | . . . . . 1 Operator 2 | . 2 . . . . Watcher 1 | . 1 . . . . Swarmer 10 | . 3 . . 7 . Grunt 19 | . 15 2 . . 2 Brawler 1 | . . . . . 1 Duelist 1 | . . . . . 1 Hunter 1 | . . . . . 1 Best Kill Streak 8 | . 8 2 . 7 3 Combat Bots Only 7 | . 7 2 . 7 3 Max Kills in Single Turn 6 | . 3 1 . 6 1 Gunslinging . | . . . . . . Exploded 6 | . 3 1 . 6 1 Melee . | . . . . . . Uniques/NPCs Destroyed . | . . . . . . Combat | -11 -10 -10 -10 -9 -8 -------- Run | Jun Mat Min Exi Min Mat Damage Taken 1467 | . 518 113 . 67 769 Core 307 | . 83 54 . 25 145 Absorbed by Shields . | . . . . . . Core Remaining (%) 67 | 100 . . . 35 . Volleys Fired 91 | . 56 5 . 5 25 Largest 2 | . 2 1 . 2 2 Hottest 85 | . 70 30 . 70 85 Shots Fired 156 | . 102 5 . 7 42 Gun 132 | . 95 . . 4 33 Cannon 6 | . . . . . 6 Launcher 18 | . 7 5 . 3 3 Special . | . . . . . . Kinetic 69 | . 49 . . 2 18 Thermal 69 | . 46 . . 2 21 Explosive 18 | . 7 5 . 3 3 Electromagnetic . | . . . . . . Robot Hit Streak 13 | . 10 11 . 13 13 Robot Miss Streak 4 | . 3 . . 2 4 Penetration Max . | . . . . . . Secondary Targets 2 | . 2 . . . . Max Gunslinging Chain 1 | . 1 . . . . Shots Hit Robots 106 | . 70 5 . 2 29 Core Hits 72 | . 44 4 . 9 15 Critical Kills . | . . . . . . Critical Parts Destroyed . | . . . . . . Critical Strikes 4 | . 3 . . 1 . Burn 4 | . 3 . . 1 . Melee Attacks . | . . . . . . Impact . | . . . . . . Slashing . | . . . . . . Piercing . | . . . . . . Sneak Attacks . | . . . . . . Combat Hostiles . | . . . . . . Follow-up Attacks . | . . . . . . Damage Inflicted 2583 | . 1223 327 . 377 656 Guns 930 | . 681 . . 19 230 Cannons 108 | . . . . . 108 Explosions 1533 | . 542 327 . 358 306 Melee . | . . . . . . Ramming 12 | . . . . . 12 Kinetic 372 | . 272 . . 6 94 Thermal 777 | . 409 111 . 13 244 Explosive 1422 | . 542 216 . 358 306 Electromagnetic . | . . . . . . Impact . | . . . . . . Slashing . | . . . . . . Piercing . | . . . . . . Highest Corruption . | . . . . . . Average Corruption . | . . . . . . Corruption Purged . | . . . . . . Corruption Blocked . | . . . . . . Overload Shots . | . . . . . . Overflow Damage . | . . . . . . Projectiles . | . . . . . . Explosions . | . . . . . . Melee . | . . . . . . Knockbacks . | . . . . . . Impact . | . . . . . . Kinetic . | . . . . . . Secondary . | . . . . . . Self-Inflicted Damage 71 | . . 54 . 17 . Shots 6 | . . 4 . 2 . Rammed . | . . . . . . Targets Rammed 1 | . . . . . 1 Kicked . | . . . . . . Crushed 1 | . . . . . 1 Highest Temperature 334 | . 334 . . 10 44 Average Temperature 70 | . 83 . . 7 14 Received Heat Transfer 432 | . 288 36 . . 108 Siege Activations . | . . . . . . Robots Corrupted . | . . . . . . Combat Hostiles . | . . . . . . Parts Fried . | . . . . . . Impact Corruptions . | . . . . . . Robots Melted . | . . . . . . Combat Hostiles . | . . . . . . Parts Melted 1 | . . . . . 1 Heat Transferred 2209 | . 1443 100 . 111 555 Parts Sabotaged . | . . . . . . Parts Stolen . | . . . . . . Parts Stripped . | . . . . . . Power Chain Reactions . | . . . . . . Missiles Intercepted . | . . . . . . Alert | -11 -10 -10 -10 -9 -8 ------- Run | Jun Mat Min Exi Min Mat Peak Influence 381 | . 381 192 . 190 206 Initial 106 | . . 106 . . 74 Average 127 | . 126 178 . 185 119 Maximum Alert Level 1 | . 1 . . . 1 Low Security (%) 75 | 100 65 100 . 100 94 Level 1 24 | . 34 . . . 5 Level 2 . | . . . . . . Level 3 . | . . . . . . Level 4 . | . . . . . . Level 5 . | . . . . . . High Security . | . . . . . . Max Security . | . . . . . . Squads Dispatched 7 | . 4 . . 1 2 Investigation 3 | . 2 . . 1 . Extermination . | . . . . . . Reinforcement 3 | . 2 . . . 1 Assault . | . . . . . . Garrison 1 | . . . . . 1 Intercept . | . . . . . . Searches Triggered . | . . . . . . Construction Impeded . | . . . . . . Haulers Reinforced . | . . . . . . Active Scanning Responses . | . . . . . . Cargo Convoy Interrupts . | . . . . . . Stealth | -11 -10 -10 -10 -9 -8 --------- Run | Jun Mat Min Exi Min Mat Distress Signals 1 | . . . . . 1 Communications Jammed . | . . . . . . Distress Signals . | . . . . . . Times Spotted 50 | . 26 2 . 9 13 Peak Tracking Total 7 | . 5 2 . 7 6 Tactical Retreats 1 | . . . . . 1 Traps | -11 -10 -10 -10 -9 -8 ------- Run | Jun Mat Min Exi Min Mat Traps Triggered 2 | . 2 . . . . Indirectly . | . . . . . . Trap Hack Attempts . | . . . . . . Triggered . | . . . . . . Disarmed . | . . . . . . Reprogrammed . | . . . . . . Reused . | . . . . . . Traps Extracted . | . . . . . . Installed . | . . . . . . Triggered . | . . . . . . Machines | -11 -10 -10 -10 -9 -8 ---------- Run | Jun Mat Min Exi Min Mat Machines Disabled 3 | . 1 1 . 1 . Max in Single Turn 1 | . 1 1 . 1 . Machines Repaired . | . . . . . . Machines Sabotaged . | . . . . . . Overloaded Fab Kills . | . . . . . . Hacking | -11 -10 -10 -10 -9 -8 --------- Run | Jun Mat Min Exi Min Mat Machines Accessed 8 | . 5 . 1 1 1 Terminals 6 | . 5 . . . 1 Fabricators . | . . . . . . Repair Stations . | . . . . . . Recycling Units . | . . . . . . Scanalyzers . | . . . . . . Garrison Access . | . . . . . . Total Hacks 17 | . 13 . 1 1 2 Successful 9 | . 6 . 1 1 1 Failed 8 | . 7 . . . 1 Catastrophic 1 | . 1 . . . . Database Lockouts . | . . . . . . Manual 9 | . 7 . . . 2 Terminals 15 | . 13 . . . 2 Fabricators . | . . . . . . Repair Stations . | . . . . . . Recycling Units . | . . . . . . Scanalyzers . | . . . . . . Garrison Access . | . . . . . . Terminal Hacks 5 | . 3 . 1 1 . Record 3 | . 2 . 1 . . Open Door 1 | . . . . 1 . Branch Access Points 1 | . 1 . . . . Fabricator Hacks . | . . . . . . Repair Station Hacks . | . . . . . . Recycling Unit Hacks . | . . . . . . Scanalyzer . | . . . . . . Garrison Access Hacks . | . . . . . . Unauthorized Hacks 4 | . 3 . . . 1 Terminals 4 | . 3 . . . 1 Botnet 3 | . 2 . . . 1 Disrupt 1 | . 1 . . . . Fabricators . | . . . . . . Repair Stations . | . . . . . . Recycling Units . | . . . . . . Scanalyzers . | . . . . . . Garrison Access . | . . . . . . Data Cores Recovered . | . . . . . . Used . | . . . . . . Hacking Detections 5 | . 4 . . . 1 Full Trace Events 1 | . 1 . . . . Feedback Events . | . . . . . . Feedback Blocked . | . . . . . . Robot Schematics Acquired . | . . . . . . Robots Built . | . . . . . . Authchips . | . . . . . . Time . | . . . . . . Total Robot Build Rating . | . . . . . . Part Schematics Acquired . | . . . . . . Parts Built . | . . . . . . Authchips . | . . . . . . Time . | . . . . . . Total Part Build Rating . | . . . . . . Parts Repaired . | . . . . . . Time . | . . . . . . Parts Recycled . | . . . . . . Recycled Matter . | . . . . . . Retrieved Matter . | . . . . . . Retrieved Components . | . . . . . . Parts Scanalyzed . | . . . . . . Part Schematics Acquired . | . . . . . . Parts Damaged . | . . . . . . Bothacking | -11 -10 -10 -10 -9 -8 ------------ Run | Jun Mat Min Exi Min Mat Used RIF Installer . | . . . . . . Robots Hacked . | . . . . . . Non-combat . | . . . . . . Combat . | . . . . . . Robot Hacks Applied . | . . . . . . Relay Couplers Released . | . . . . . . Fabnet Peak Effective % . | . . . . . . Robots Rewired . | . . . . . . Allies Hacked . | . . . . . . Hacks Repelled . | . . . . . . Allies | -11 -10 -10 -10 -9 -8 -------- Run | Jun Mat Min Exi Min Mat Total Allies . | . . . . . . Largest Group . | . . . . . . Highest-Rated Group . | . . . . . . Highest-Rated Ally . | . . . . . . Total Orders . | . . . . . . Ally Attacks . | . . . . . . Total Damage . | . . . . . . Kills . | . . . . . . Allies Corrupted . | . . . . . . Allies Melted . | . . . . . . Intel | -11 -10 -10 -10 -9 -8 ------- Run | Jun Mat Min Exi Min Mat Robot Analysis Total . | . . . . . . Derelict Logs Recovered 1 | . . 1 . . . Drone Launches . | . . . . . . Drone Recoveries . | . . . . . . Exploration | -11 -10 -10 -10 -9 -8 ------------- Run | Jun Mat Min Exi Min Mat Turns Passed 1807 | 83 1075 111 271 123 144 Spaces Moved 909 | 51 525 62 169 65 37 Core 6 | 6 . . . . . Treads 903 | 45 525 62 169 65 37 Legs . | . . . . . . Wheels . | . . . . . . Hover . | . . . . . . Flight . | . . . . . . Fastest Speed 50 | 50 160 160 160 160 160 Average Speed 159 | 147 160 160 160 160 162 Slowest Speed 240 | 160 160 160 160 160 240 Overloaded Moves . | . . . . . . Propulsion Burnouts . | . . . . . . Robots Hopped . | . . . . . . Cave-ins Triggered . | . . . . . . Exploration Rate (%) 30 | 5 82 19 53 17 4 Regions Visited 5 Branch Regions 3 Pre-discovered Areas 1 | . . . 1 . . Known Exits Taken 1 | . 1 . . . . Unknown Exits Taken 4 | 1 . 1 1 1 . Scrap Searched 1 | . . . . 1 . Spaces Dug 19 | . . . . 19 . Terrain Destroyed 123 | . 57 24 . 19 23 Melee . | . . . . . . Projectile 1 | . . . . . 1 AOE 122 | . 57 24 . 19 22 Terrain Rammed . | . . . . . . Walls Destroyed . | . . . . . . Machines Disabled . | . . . . . . Actions | -11 -10 -10 -10 -9 -8 --------- Run | Jun Mat Min Exi Min Mat Total 1112 | 56 662 68 170 77 79 Wait 74 | . 65 . . 1 8 Move 904 | 50 524 61 168 64 37 Hop . | . . . . . . Pick Up 10 | . 3 . 2 5 . Fast Attach 11 | 6 3 . . . 2 Attach 4 | . 1 . . . 3 Detach . | . . . . . . Swap 16 | . 9 2 . 2 3 Drop 1 | . 1 . . . . Fire 91 | . 56 5 . 5 25 Melee . | . . . . . . Ram . | . . . . . . Kick . | . . . . . . Crush 1 | . . . . . 1 Escape Stasis . | . . . . . . Rewire . | . . . . . . Trap . | . . . . . . Miscellaneous . | . . . . . . Route ------- -11/Junkyard -10/Materials (discovered 4 exits: [*Mat x3] / *Min) -10/Mines -10/Exiles -9/Mines -8/Materials History --------- Turn | Location | Event 9 | -11/Junkyard | Discovered new exit (range 15) 84 | -11/Junkyard | Entered Materials 304 | -10/Materials | Build established: Mutant 477 | -10/Materials | Discovered new exit (range 15) 653 | -10/Materials | Discovered new exit (range 6) 769 | -10/Materials | Identified exit to Mines 835 | -10/Materials | Destroyed 7 combat bots 978 | -10/Materials | Discovered new exit (range 16) 1159 | -10/Materials | Entered Mines 1163 | -10/Mines | Learned Materials security intel 1175 | -10/Mines | Core integrity fell below 50% 1264 | -10/Mines | Deemed a non-threat by the Exiles lab entrance 1264 | -10/Mines | Discovered new exit (range 5) 1270 | -10/Mines | Entered Exiles 1310 | -10/Exiles | Met 8R-AWN 1338 | -10/Exiles | Met EX-HEX 1417 | -10/Exiles | Met EX-DEC 1444 | -10/Exiles | Learned location of Zion (-6) 1528 | -10/Exiles | Discovered new exit (range 10) 1541 | -10/Exiles | Entered Mines 1542 | -9/Mines | Met a Derelict bent on vengeance 1559 | -9/Mines | Received a Rocket Launcher from a helpful Derelict 1568 | -9/Mines | Destroyed 7 combat bots 1582 | -9/Mines | Discovered new exit (range 16) 1613 | -9/Mines | Met a Derelict shopkeep closing up shop 1664 | -9/Mines | Entered Materials 1664 | -8/Materials | Evolved 4 slots: Utility x4 1724 | -8/Materials | Garrison activated, responded to threat 1808 | -8/Materials | Self-destructed Last Messages --------------- 01760_ G-47 Trooper destroyed. 01761_ Penetrated by Slug. 01762_ The unstable cave ceiling collapses. 01762_ B-36 Bruiser destroyed. 01765_ Imp. Ion Engine destroyed. 01772_ Lgt. Treads destroyed. 01775_ Heat Sink destroyed. 01776_ Lgt. Treads severed. 01779_ Acquired Lgt. Treads. 01786_ Med. Laser destroyed. 01787_ Lgt. Treads destroyed. 01790_ Slug penetrates Wall. 01794_ Lgt. Assault Rifle severed. 01794_ Penetrated by Slug. 01796_ Katana melted. 01796_ L-31 Rogue destroyed. 01797_ Slug penetrates Wall. 01798_ H-55 Commando destroyed. 01801_ Critical hit (Burn: +37). 01806_ Lgt. Treads destroyed. Map ----- +----------------------------------------------------+ | ?????????????????????????????????????????????????? | | ?????????????????????????????????????????????????? | | ?????????????????????????????????????????????????? | | ?????????????????????????????????????????????????? | | ?????????????????????????????????????????????????? | | ?????????????????????????????????????????????????? | | ?????????????????????????????????????????????????? | | ?????????????????????????????????????????????????? | | ?????????????????????????????????????????????????? | | ?????????????????????????????????????????????????? | | ?????????????????????????????????????????????????? | | ?????????????????????????????????????????????????? | | ?????????????????????????????????????????????????? | | ?????????????????????????????????????????????????? | | ???????????????????????#####?????????????????????? | | ?????????#?????????????# #?????????????????????? | | ?????????# ????????????# #?????????????????????? | | ?????????# ????????????# #?????????????????????? | | ?????????# ???????????# #??????? #??????????? | | ????????## ???????????# #?????? #??????????? | | ????????# ??????????# #???? #??????????? | | ????????# *########### ##?? #??????????? | | ????????# !%=!%[!%!!k ## ####?????????? | | ????????# !########## | *% ????????? | | ????????#####?????????# T % = ????????? | | ??????????????????????# @% [ % ????????? | | ??????????????????????# [ ! ### ### ?????????? | | ??????????????????????##% ##????????????????????? | | ???????????????????????#% #?????????????????????? | | ???????????????????????# #?????????????????????? | | ???????????????????????# #?????????????????????? | | ???????????????????????# #?????????????????????? | | ???????????????????????# #?????????????????????? | | ??????????????????????? ?????????????????????? | | ???????????????????????# ?????????????????????? | | ??????????????????????? "????????????????????? | | ??????????????????????? g=#????????????????????? | | ??????????????????????? /%*????????????????????? | | ??????????????????????? ! ????????????????????? | | ??????????????????????? ????????????????????? | | ???????????????????????" """????????????????????? | | ???????????????????????" ""?????????????????????? | | ???????????????????????? ???????????????????????? | | ?????????????????????????????????????????????????? | | ?????????????????????????????????????????????????? | | ?????????????????????????????????????????????????? | | ?????????????????????????????????????????????????? | | ?????????????????????????????????????????????????? | | ?????????????????????????????????????????????????? | | ?????????????????????????????????????????????????? | +----------------------------------------------------+ Best States ------------- Heat Dissipation 41 Energy Generation 12 Energy Capacity 265 Matter Stores 300 Matter Capacity 300 Sight Range 16 Terrain Scan Density 10 Evasion (%) 40 Recoil Reduction 2 Offensive Hacking 10 Item Schematics ----------------- None Robot Schematics ------------------ None Fabricated ------------ Nothing Alien Tech Used ----------------- None Achievements -------------- None Challenges ------------ None Game ------ Seed DeliveryFieldNullifier Manual? 0 Play Time 00:12:54 Cumulative 505.1 hours Start 2023.05.21 @ 18:28:31 End 2023.05.21 @ 19:48:38 Sessions 1 Manual Loads 0 Difficulty Rogue Special Mode None Game No. 538 Rogue 529 Adventurer 8 Explorer 1 Win Type - Total 10 Types 5/2/3/0/0/0/0/0/0 Lore% 82 Gallery% 91 Achievement% 71 Wizard Run 0 Options --------- ASCII 0 Keyboard 0 Movement Numpad Keybinds 1 Fullscreen 2 Font 18/Terminus Map View 76x50 Tactical HUD 1 Map Filters NONE Filters NONE Steam 1 RUN: ecf6136b-aae9-42b3-8759-1a2933448c6a